Cogmind - Beta 11 *** ADVENTURER MODE // 2022.04.09 @ 22:57:23 // Winter2019/RPGLIKE Player: LILY Result: Self-destructed Performance ------------- Evolutions (1) 500 Regions Visited (5) 1000 Robots Destroyed (17) 85 Value Destroyed (282) 282 Prototype IDs (4) 80 Alien Tech Used (0) 0 Bonus (300) 300 TOTAL SCORE: 2247 Bonus ------- Aligned with FarCom 300 Cogmind --------- Core Integrity 600/600 Matter 280/300 Energy 325/325 System Corruption 0% Temperature Cool (0) Movement Flying (40) Location -9/Exiles Parts ------- > --- POWER (1) -------- Light Ion Engine > --- PROPULSION (2) --- Flight Unit > --- UTILITY (4) ------ Large Battery Sensor Array Signal Interpreter Improved Terrain Scanner > --- WEAPON (2) ------- Latent Energy Streamer > --- INVENTORY (2) ---- Rocket Launcher Mining Claw Peak State ------------ > --- POWER ------------ Light Ion Engine > --- PROPULSION ------- Flight Unit > --- UTILITY ---------- Large Battery Sensor Array Signal Interpreter Improved Terrain Scanner > --- WEAPON ----------- Latent Energy Streamer > --- INVENTORY -------- Rocket Launcher Mining Claw [Rating: 18] Favorites ----------- Power Light Ion Engine Engine Light Ion Engine Propulsion Flight Unit Flight Unit Flight Unit Utility Improved Terrain Scanner Device Improved Terrain Scanner Storage Large Battery Processor Signal Interpreter Weapon Improved Medium Laser Energy Gun Improved Medium Laser Energy Cannon Latent Energy Streamer Ballistic Gun Light Assault Rifle Launcher Rocket Launcher Special Weapon Mining Laser Slashing Weapon Mining Claw Build | -11 -10 -10 -9 -9 -9 ------- Run | Scr Mat Min Mat Min Exi Slots Evolved 5 | 3 . . 2 . . Power . | . . . . . . Propulsion 1 | 1 . . . . . Utility 3 | 1 . . 2 . . Weapon 1 | 1 . . . . . Parts Attached 17 | 5 5 1 1 3 2 Power 1 | 1 . . . . . Engine 1 | 1 . . . . . Core . | . . . . . . Reactor . | . . . . . . Propulsion 1 | . . . . 1 . Treads . | . . . . . . Leg . | . . . . . . Wheel . | . . . . . . Hover . | . . . . . . Flight 1 | . . . . 1 . Utility 6 | 2 2 . 1 . 1 Device 4 | 2 1 . 1 . . Storage 1 | . . . . . 1 Processor 1 | . 1 . . . . Hackware . | . . . . . . Protection . | . . . . . . Artifact . | . . . . . . Weapon 9 | 2 3 1 . 2 1 Energy Gun 3 | 1 2 . . . . Energy Cannon 1 | . . . . . 1 Ballistic Gun 1 | 1 . . . . . Ballistic Cannon . | . . . . . . Launcher 1 | . . . . 1 . Special Weapon 1 | . 1 . . . . Impact Weapon . | . . . . . . Slashing Weapon 2 | . . 1 . 1 . Piercing Weapon . | . . . . . . Special Melee Weapon . | . . . . . . Unidentified Prototypes 2 | . 1 . . . 1 Parts Lost . | . . . . . . Power . | . . . . . . Propulsion . | . . . . . . Utility . | . . . . . . Weapon . | . . . . . . Highest Loss Streak . | . . . . . . To Critical Strikes . | . . . . . . Average Slot Usage (%) 69 | . 70 71 56 74 77 Engine 12 | . 14 14 11 11 11 Flight 2 | . . . . 8 11 Device 19 | . 23 14 12 22 22 Storage 1 | . . . . . 7 Processor 9 | . 4 14 11 11 11 Energy Gun 11 | . 14 14 11 11 3 Energy Cannon 1 | . . . . . 7 Special Weapon 5 | . 11 6 . . . Slashing Weapon 4 | . . 7 11 8 3 Naked Turns . | . . . . . . Heaviest Build 18 | 7 9 9 10 10 18 Greatest Support 14 | 13 13 13 13 14 14 Greatest Overweight (x) 1 | . . . . . 1 Average Overweight (x) . | . . . . . . Largest Inventory Capacity 2 | 2 2 2 2 2 2 Average Capacity 2 | 2 2 2 2 2 2 Most Carried 2 | 1 2 2 2 2 2 Average Carried 1 | . 1 1 2 2 1 Final Capacity 2 | 2 2 2 2 2 2 Final Carried 2 | 1 2 2 2 2 2 Class Distribution -------------------- 78% | Hacker-Mutant 21% | Hacker-Scout Dominant Class ---------------- Hacker-Mutant | -10/Materials Hacker-Mutant | -10/Mines Hacker-Mutant | -9/Materials Hacker-Scout | -9/Mines Hacker-Mutant | -9/Exiles Resources | -11 -10 -10 -9 -9 -9 ----------- Run | Scr Mat Min Mat Min Exi Matter Collected 361 | 210 90 . 10 51 . Remotely . | . . . . . . Salvage Created 474 | 114 231 61 63 5 . Parts 28 | 9 5 3 8 3 . Haulers Intercepted 2 | . 2 . . . . Recyclers Shooed . | . . . . . . Parts Field Recycled . | . . . . . . Retrieved Matter . | . . . . . . Parts Self-Destructed . | . . . . . . Prevented . | . . . . . . Kills | -11 -10 -10 -9 -9 -9 ------- Run | Scr Mat Min Mat Min Exi Combat Hostiles Destroyed 8 | . 2 2 . 4 . Guns 3 | . 1 2 . . . AOE 4 | . . . . 4 . Classes Destroyed 5 | 1 2 . 1 1 . Tunneler 4 | 4 . . . . . Hauler 2 | . 2 . . . . Watcher 3 | . . . 3 . . Swarmer 4 | . . . . 4 . Grunt 4 | . 2 2 . . . Best Kill Streak 4 | 3 2 2 2 4 . Combat Bots Only 4 | . 2 2 . 4 . Max Kills in Single Turn 4 | 1 1 1 1 4 . Gunslinging . | . . . . . . Exploded 4 | . . . . 4 . Melee . | . . . . . . Uniques/NPCs Destroyed . | . . . . . . Combat | -11 -10 -10 -9 -9 -9 -------- Run | Scr Mat Min Mat Min Exi Damage Taken 152 | . 88 55 . 9 . Core 122 | . 69 46 . 7 . Absorbed by Shields . | . . . . . . Redirected to Core 96 | . 61 28 . 7 . Core Remaining (%) 98 | 100 . 97 . . . Volleys Fired 45 | 13 26 5 . 1 . Largest 1 | 1 1 1 . 1 . Hottest 100 | 40 100 56 . 33 . Shots Fired 45 | 13 26 5 . 1 . Gun 43 | 13 25 5 . . . Cannon . | . . . . . . Launcher 1 | . . . . 1 . Special 1 | . 1 . . . . Kinetic . | . . . . . . Thermal 44 | 13 26 5 . . . Explosive 1 | . . . . 1 . Electromagnetic . | . . . . . . Robot Hit Streak 13 | 10 13 4 . 5 . Robot Miss Streak 5 | 1 5 1 . . . Penetration Max . | . . . . . . Secondary Targets . | . . . . . . Shots Hit Robots 41 | 12 19 4 5 1 . Core Hits 17 | 4 3 3 3 4 . Critical Kills . | . . . . . . Critical Parts Destroyed . | . . . . . . Critical Strikes 7 | . 7 . . . . Burn 7 | . 7 . . . . Melee Attacks 6 | . . . 6 . . Impact . | . . . . . . Slashing 6 | . . . 6 . . Piercing . | . . . . . . Sneak Attacks . | . . . . . . Combat Hostiles . | . . . . . . Follow-up Attacks . | . . . . . . Damage Inflicted 853 | 135 319 69 131 199 . Guns 523 | 135 319 69 . . . Cannons . | . . . . . . Explosions 199 | . . . . 199 . Melee 131 | . . . 131 . . Ramming . | . . . . . . Kinetic . | . . . . . . Thermal 523 | 135 319 69 . . . Explosive 199 | . . . . 199 . Electromagnetic . | . . . . . . Impact . | . . . . . . Slashing 131 | . . . 131 . . Piercing . | . . . . . . Highest Corruption . | . . . . . . Average Corruption . | . . . . . . Corruption Purged . | . . . . . . Corruption Blocked . | . . . . . . Overload Shots . | . . . . . . Overflow Damage 1 | . . . . 1 . Projectiles . | . . . . . . Explosions 1 | . . . . 1 . Melee . | . . . . . . Knockbacks . | . . . . . . Impact . | . . . . . . Kinetic . | . . . . . . Secondary . | . . . . . . Self-Inflicted Damage . | . . . . . . Shots . | . . . . . . Rammed . | . . . . . . Targets Rammed . | . . . . . . Kicked . | . . . . . . Crushed . | . . . . . . Highest Temperature 379 | . 379 . . . . Average Temperature 155 | . 155 . . . . Received Heat Transfer 126 | . 84 42 . . . Siege Activations . | . . . . . . Robots Corrupted . | . . . . . . Combat Hostiles . | . . . . . . Parts Fried . | . . . . . . Impact Corruptions . | . . . . . . Robots Melted 2 | . 2 . . . . Combat Hostiles 1 | . 1 . . . . Parts Melted 7 | 1 5 1 . . . Heat Transferred 1669 | 300 1221 148 . . . Parts Sabotaged . | . . . . . . Parts Stolen . | . . . . . . Parts Stripped . | . . . . . . Power Chain Reactions . | . . . . . . Missiles Intercepted . | . . . . . . Alert | -11 -10 -10 -9 -9 -9 ------- Run | Scr Mat Min Mat Min Exi Peak Influence 226 | 20 226 90 174 171 . Initial 57 | . 11 25 29 57 . Average 90 | 6 97 87 115 165 . Maximum Alert Level 1 | . 1 . . . . Low Security (%) 98 | 100 95 100 100 100 . Level 1 1 | . 4 . . . . Level 2 . | . . . . . . Level 3 . | . . . . . . Level 4 . | . . . . . . Level 5 . | . . . . . . High Security . | . . . . . . Max Security . | . . . . . . Squads Dispatched . | . . . . . . Investigation . | . . . . . . Extermination . | . . . . . . Reinforcement . | . . . . . . Assault . | . . . . . . Garrison . | . . . . . . Intercept . | . . . . . . Searches Triggered . | . . . . . . Construction Impeded . | . . . . . . Haulers Reinforced . | . . . . . . Active Scanning Responses . | . . . . . . Cargo Convoy Interrupts . | . . . . . . Stealth | -11 -10 -10 -9 -9 -9 --------- Run | Scr Mat Min Mat Min Exi Distress Signals 1 | . 1 . . . . Communications Jammed . | . . . . . . Distress Signals . | . . . . . . Times Spotted 26 | . 13 2 7 4 . Peak Tracking Total 6 | . 6 2 3 4 . Tactical Retreats 2 | . 2 . . . . Traps | -11 -10 -10 -9 -9 -9 ------- Run | Scr Mat Min Mat Min Exi Traps Triggered 1 | . 1 . . . . Indirectly . | . . . . . . Trap Hack Attempts . | . . . . . . Triggered . | . . . . . . Disarmed . | . . . . . . Reprogrammed . | . . . . . . Reused . | . . . . . . Traps Extracted . | . . . . . . Installed . | . . . . . . Triggered . | . . . . . . Exploded 1 | . . . . . 1 Machines | -11 -10 -10 -9 -9 -9 ---------- Run | Scr Mat Min Mat Min Exi Machines Disabled . | . . . . . . Max in Single Turn . | . . . . . . Machines Sabotaged . | . . . . . . Garrisons Compromised . | . . . . . . Overloaded Fab Kills . | . . . . . . Hacking | -11 -10 -10 -9 -9 -9 --------- Run | Scr Mat Min Mat Min Exi Machines Accessed 5 | . 4 . 1 . . Terminals 5 | . 4 . 1 . . Fabricators . | . . . . . . Repair Stations . | . . . . . . Recycling Units . | . . . . . . Scanalyzers . | . . . . . . Garrison Access . | . . . . . . Total Hacks 27 | . 18 . 9 . . Successful 17 | . 11 . 6 . . Failed 10 | . 7 . 3 . . Catastrophic 1 | . 1 . . . . Database Lockouts . | . . . . . . Manual 24 | . 14 . 9 . 1 Terminals 27 | . 18 . 9 . . Fabricators . | . . . . . . Repair Stations . | . . . . . . Recycling Units . | . . . . . . Scanalyzers . | . . . . . . Garrison Access . | . . . . . . Terminal Hacks 13 | . 8 . 5 . . Prototype ID Bank 2 | . 1 . 1 . . Branch Access Points 2 | . 1 . 1 . . Terminal Index 2 | . 1 . 1 . . Unreport Threat 1 | . 1 . . . . Dispatch Records 2 | . 1 . 1 . . Registered Components 2 | . 1 . 1 . . Zone Layout 2 | . 2 . . . . Fabricator Hacks . | . . . . . . Repair Station Hacks . | . . . . . . Recycling Unit Hacks . | . . . . . . Scanalyzer . | . . . . . . Garrison Access Hacks . | . . . . . . Unauthorized Hacks 4 | . 3 . 1 . . Terminals 4 | . 3 . 1 . . Botnet 4 | . 3 . 1 . . Fabricators . | . . . . . . Repair Stations . | . . . . . . Recycling Units . | . . . . . . Scanalyzers . | . . . . . . Garrison Access . | . . . . . . Data Cores Recovered . | . . . . . . Used . | . . . . . . Hacking Detections 5 | . 4 . 1 . . Full Trace Events . | . . . . . . Feedback Events . | . . . . . . Feedback Blocked . | . . . . . . Robot Schematics Acquired . | . . . . . . Robots Built . | . . . . . . Authchips . | . . . . . . Time . | . . . . . . Total Robot Build Rating . | . . . . . . Part Schematics Acquired . | . . . . . . Parts Built . | . . . . . . Authchips . | . . . . . . Time . | . . . . . . Total Part Build Rating . | . . . . . . Parts Repaired . | . . . . . . Time . | . . . . . . Parts Recycled . | . . . . . . Recycled Matter . | . . . . . . Retrieved Matter . | . . . . . . Retrieved Components . | . . . . . . Parts Scanalyzed . | . . . . . . Part Schematics Acquired . | . . . . . . Parts Damaged . | . . . . . . Bothacking | -11 -10 -10 -9 -9 -9 ------------ Run | Scr Mat Min Mat Min Exi Used RIF Installer . | . . . . . . Robots Hacked . | . . . . . . Non-combat . | . . . . . . Combat . | . . . . . . Robot Hacks Applied . | . . . . . . Relay Couplers Released . | . . . . . . Fabnet Peak Effective % . | . . . . . . Robots Rewired . | . . . . . . Allies Hacked . | . . . . . . Hacks Repelled . | . . . . . . Allies | -11 -10 -10 -9 -9 -9 -------- Run | Scr Mat Min Mat Min Exi Total Allies . | . . . . . . Largest Group . | . . . . . . Highest-Rated Group . | . . . . . . Highest-Rated Ally . | . . . . . . Total Orders . | . . . . . . Ally Attacks . | . . . . . . Total Damage . | . . . . . . Kills . | . . . . . . Allies Corrupted . | . . . . . . Allies Melted . | . . . . . . Intel | -11 -10 -10 -9 -9 -9 ------- Run | Scr Mat Min Mat Min Exi Robot Analysis Total . | . . . . . . Derelict Logs Recovered . | . . . . . . Drone Launches . | . . . . . . Drone Recoveries . | . . . . . . Exploration | -11 -10 -10 -9 -9 -9 ------------- Run | Scr Mat Min Mat Min Exi Turns Passed 875 | 93 266 165 142 40 169 Spaces Moved 1240 | 49 393 248 245 73 232 Core 948 | 49 393 248 245 13 . Treads . | . . . . . . Legs . | . . . . . . Wheels . | . . . . . . Hover . | . . . . . . Flight 292 | . . . . 60 232 Fastest Speed 40 | 50 50 50 50 40 40 Average Speed 53 | 50 50 50 50 41 71 Slowest Speed 120 | 50 50 50 50 50 120 Overloaded Moves . | . . . . . . Propulsion Burnouts . | . . . . . . Robots Hopped . | . . . . . . Cave-ins Triggered . | . . . . . . Exploration Rate (%) 34 | 4 56 47 28 13 59 Regions Visited 5 Branch Regions 3 Pre-discovered Areas 1 | . . . . 1 . Known Exits Taken 4 | . 1 1 1 1 . Unknown Exits Taken 1 | 1 . . . . . Scrap Searched . | . . . . . . Spaces Dug 1 | . 1 . . . . Terrain Destroyed 9 | . 1 . . 8 . Melee . | . . . . . . Projectile 1 | . 1 . . . . AOE 8 | . . . . 8 . Terrain Rammed . | . . . . . . Walls Destroyed . | . . . . . . Machines Disabled . | . . . . . . Actions | -11 -10 -10 -9 -9 -9 --------- Run | Scr Mat Min Mat Min Exi Total 1383 | 101 433 283 251 79 236 Wait 59 | 34 3 22 . . . Move 1235 | 48 392 247 244 72 232 Hop . | . . . . . . Pick Up 4 | 1 2 1 . . . Fast Attach 13 | 5 4 1 1 1 1 Attach 1 | . . . . . 1 Detach 1 | . . . . . 1 Swap 3 | . 1 . . 2 . Drop 8 | . 5 2 . . 1 Fire 45 | 13 26 5 . 1 . Melee 6 | . . . 6 . . Ram . | . . . . . . Kick . | . . . . . . Crush . | . . . . . . Escape Stasis . | . . . . . . Rewire . | . . . . . . Trap . | . . . . . . Miscellaneous 8 | . . 5 . 3 . Route ------- -11/Scrapyard -10/Materials (discovered 3 exits: *Mat x2 / *Min) -10/Mines -9/Materials (discovered 3 exits: [Mat] / *Min x2) -9/Mines (discovered 2 exits: [Mat] / *Exi) -9/Exiles History --------- Turn | Location | Event 1 | -11/Scrapyard | Upgraded with Propulsion slot (x1) 1 | -11/Scrapyard | Upgraded with Utility slot (x1) 1 | -11/Scrapyard | Upgraded with Weapon slot (x1) 13 | -11/Scrapyard | Discovered new exit (range 16) 94 | -11/Scrapyard | Entered Materials 120 | -10/Materials | Identified exit to Mines 202 | -10/Materials | Discovered new exit (range 4) 343 | -10/Materials | Discovered new exit (range 14) 360 | -10/Materials | Entered Mines 403 | -10/Mines | Received a Rocket Launcher from a helpful Derelict 523 | -10/Mines | Discovered new exit (range 3) 524 | -10/Mines | Identified exit to Materials 525 | -10/Mines | Entered Materials 527 | -9/Materials | Reached level 2 527 | -9/Materials | Reached level 3 529 | -9/Materials | Upgraded with Utility slot (x2) 536 | -9/Materials | Identified exit to Mines 554 | -9/Materials | Reached level 4 574 | -9/Materials | Build established: Hacker-Mutant 610 | -9/Materials | Discovered new exit (range 10) 667 | -9/Materials | Entered Mines 668 | -9/Mines | Learned location of Storage (-8) 676 | -9/Mines | Discovered new exit (range 14) 688 | -9/Mines | Discovered new exit (range 8) 693 | -9/Mines | Deemed a non-threat by the Exiles lab entrance 706 | -9/Mines | Met a Derelict bent on vengeance 707 | -9/Mines | Identified exit to Exiles 707 | -9/Mines | Entered Exiles 717 | -9/Exiles | Met 8R-AWN 724 | -9/Exiles | Met EX-HEX 735 | -9/Exiles | Met EX-BIN 752 | -9/Exiles | Aligned with FarCom system 753 | -9/Exiles | Given EX-Vault access code 762 | -9/Exiles | Opened EX-Vault 766 | -9/Exiles | Found Prototype Energy Cannon 766 | -9/Exiles | Identified Latent Energy Streamer 794 | -9/Exiles | Warned to stay clear of 0b10 Research branches 811 | -9/Exiles | Exiles lab attacked by MAIN.C 876 | -9/Exiles | Self-destructed Last Messages --------------- 00762_ Connecting with EX-Vault Access... 00764_ Dropped Imp. Medium Laser. 00766_ Acquired Prototype Energy Cannon. 00766_ Identified Latent Energy Streamer. EX-BIN: Oh yeah, I'd suggest you stay away from the 0b10 Research branches, since the FarCom signals could be picked up there, but you're welcome to try if you really want to. And if we have to leave here due to unforeseen circumstances, don't worry the FarCom system will continue to maintain contact via our distributed network. EX-BIN: And don't even think about spreading that code around. We're gonna change it right after you leave. Most certainly not to something like 1234 which I did last time as a little joke and some thief managed to sneak in here and steal a few of HEX's prototypes. 00811_ EXILES: Incoming Unaware force detected on approach from Mines. Prepare for evacuation. 00846_ EXILES: Lab perimeter alert, evacuate immediately. 00874_ EX-BIN: "Not cool, MAIN.C, I don't even have my SDF Cannon ready..." 00876_ Upgraded: Mass Support (+5) Map ----- +----------------------------------------------------+ | ???????????????????????????????????????????????### | | ????????????????????????????????????????????????## | | ???????????????????????????????????????????????#?# | | ????????????????????????????????????????????????## | | ???????????????????????????????????????????????### | | ????????????????????????????????????????????????## | | ????????????????????????????????????????????????## | | ??????????????????????????????????????????????#?## | | ??????????????????#?#???#??????????????????????### | | ????????????????#?????????????????????????????#?## | | ?????????????#???????##?##?????#???????????????### | | ????????????????#??###?######??#???????????????#?# | | ??????????????##?#???#?#???##?####?????????????#?# | | ???????? ?????##?################?#???????????### | | ???????? #??#?##?#?##?###??#?##??##?????????### | | ???????# ?????####################?##????????## | | ???????# ##############!!! "###?##?????????### | | ???????# #""##?###?# "#######?#??????### | | ???????## ?##?### "#?###?##?###?????# | | ????????##" ###??## ""###?###????#?###?# | | ????????#"" #####" ""#####???##?#? "?" | | ??????#??### ##" ""######???###"" """ | | ???????#?#### #"" #######?#?##??"" | | ?????###??###"## ####?#######?#"" | | ??????#?#####?##### #######?####?#"" " | | ?????#???#?##?###?### @ "############# "" | | ????????###?########" ######??#####"" "" | | ??????###?#?# !!""""" c #######??##?# ## | | ????????###?#! "###"" ############ ## | | ???????#?#?##! "#?##" c """#####X# #" | | ?????????##?#! #####" " | | ???????#??### !""""""#######"# " | | ?????????#??#############??#### | | ??????#??##?####?############?### | | ?????????#?##?###?########?##?#?### | | ????????#?#?##?##??##?##########?### | | ??????????########?###?#?###?######## | | ??????????######?###############?#####" | | ?????????#????#?#?#?###?########?#####""" | | ??????????????#?######################" | | ???????????#???#?##?#?###?####????#?#"" | | ????????????????????#?#?#############""" | | ??????????????#??????##?####?##?###?""" | | ????????????????##??????#??###?#####""" | | ????????????????????????????##?#?##?"" | | ????????????????????#???????#?????#?""" | | ???????????????????????????????#?#?#"" | | ??????????????????????????????#?##?#?"" | | ????????????????????????????????#??##"""" | | ?????????????????????????????????????# | +----------------------------------------------------+ Best States ------------- Heat Dissipation 49 Energy Generation 10 Energy Capacity 325 Matter Stores 300 Matter Capacity 300 Sight Range 17 Robot Scan Range 14 Terrain Scan Range 16 Terrain Scan Density 510 Resistance: KI 20 Resistance: TH 20 Resistance: EX 20 Resistance: EM 20 Resistance: I 20 Resistance: S 20 Resistance: P 20 Evasion (%) 62 Offensive Hacking 20 Defensive Hacking 5 Item Schematics ----------------- None Robot Schematics ------------------ None Fabricated ------------ Nothing Alien Tech Used ----------------- None Achievements -------------- None Challenges ------------ None RPGLIKE | -11 -10 -10 -9 -9 -9 --------- Run | Scr Mat Min Mat Min Exi Levels Raised 3 | . . . 3 . . XP Earned 9883 | 4000 350 750 3483 950 350 XP Spent 7820 | 3820 90 . 2810 . 1100 Upgrades 23 | 15 1 . 6 . 1 Propulsion Slot 1 | 1 . . . . . Utility Slot 3 | 1 . . 2 . . Weapon Slot 1 | 1 . . . . . Heat Dissipation 4 | 4 . . . . . Mass Support 3 | 2 . . . . 1 Inventory Capacity 2 | 2 . . . . . Sight Range 1 | 1 . . . . . Terrain Scan Density 5 | 1 1 . 3 . . Hack Attack % 2 | 1 . . 1 . . Hack Defense % 1 | 1 . . . . . Protomatter Created 42 | . . 34 . 8 . Integrity Restored 125 | . . 102 . 23 . Core 122 | . . 102 . 20 . Parts 3 | . . . . 3 . Protomatter Decayed . | . . . . . . Game ------ Seed MassThrowingSink Manual? 0 Play Time 00:19:28 Cumulative 125.0 hours Start 2022.04.09 @ 22:38:34 End 2022.04.09 @ 22:57:23 Sessions 1 Manual Loads 0 Difficulty Adventurer Special Mode Winter2019/RPGLIKE Game No. 21 Rogue 6 Adventurer 11 Explorer 4 Win Type - Total 12 Types 5/0/2/4/0/1/0/0/0 Lore% 55 Gallery% 58 Achievement% 64 Wizard Run 0 Options --------- ASCII 0 Keyboard 0 Movement Mouse Keybinds 0 Fullscreen 1 Font 18/Smallcaps Map View 76x50 Tactical HUD 1 Map Filters NONE Filters NONE Steam 1 RUN: b7e72828-e148-4ad8-97ca-b8f81b433a2d